[Event "Titled Tuesday Blitz February 28 Early 2023"]
[White "Kuchava, Ana"]
[Black "Subelj, Jan"]
[WhiteFideId "13605348"]
[BlackFideId "14618583"]
[WhiteElo "2001"]
[BlackElo "2480"]
[Result "1/2-1/2"]
[Round "02"]
[TimeControl "180+2"]
[Date "2023.02.28"]
[WhiteClock "0:00:03"]
[BlackClock "0:00:16"]

1. d4 {[%clk 0:03:00]}  Nf6 {[%clk 0:02:50]} 2. Nf3 {[%clk 0:02:57]}  g6 {[%clk 0:02:44]} 3. c4 {[%clk 0:02:54]}  Bg7 {[%clk 0:02:44]} 4. Nc3 {[%clk 0:02:52]}  O-O {[%clk 0:02:44]} 5. e4 {[%clk 0:02:48]}  d6 {[%clk 0:02:43]} 6. Be2 {[%clk 0:02:47]}  e5 {[%clk 0:02:42]} 7. O-O {[%clk 0:02:46]}  Nc6 {[%clk 0:02:39]} 8. Be3 {[%clk 0:02:45]}  Ng4 {[%clk 0:02:27]} 9. Bg5 {[%clk 0:02:44]}  f6 {[%clk 0:02:21]} 10. Bc1 {[%clk 0:02:43]}  f5 {[%clk 0:02:05]} 11. d5 {[%clk 0:02:25]}  Nd4 {[%clk 0:01:59]} 12. Nxd4 {[%clk 0:01:34]}  exd4 {[%clk 0:02:00]} 13. Nb5 {[%clk 0:01:34]}  c5 {[%clk 0:01:36]} 14. dxc6 {[%clk 0:01:33]}  bxc6 {[%clk 0:01:35]} 15. Nxd4 {[%clk 0:01:23]}  Qb6 {[%clk 0:01:35]} 16. Nb3 {[%clk 0:01:11]}  Nxf2 {[%clk 0:01:34]} 17. Rxf2 {[%clk 0:01:03]}  fxe4 {[%clk 0:01:34]} 18. c5 {[%clk 0:01:01]}  dxc5 {[%clk 0:01:35]} 19. Bc4+ {[%clk 0:00:59]}  Kh8 {[%clk 0:01:35]} 20. Rxf8+ {[%clk 0:00:54]}  Bxf8 {[%clk 0:01:36]} 21. Be3 {[%clk 0:00:47]}  Bf5 {[%clk 0:01:28]} 22. Qe2 {[%clk 0:00:42]}  a5 {[%clk 0:01:27]} 23. Qf2 {[%clk 0:00:38]}  a4 {[%clk 0:01:25]} 24. Nxc5 {[%clk 0:00:36]}  Bg7 {[%clk 0:01:14]} 25. Bd4 {[%clk 0:00:28]}  Qd8 {[%clk 0:01:08]} 26. Bxg7+ {[%clk 0:00:25]}  Kxg7 {[%clk 0:01:09]} 27. Be6 {[%clk 0:00:16]}  Qf6 {[%clk 0:01:04]} 28. Rf1 {[%clk 0:00:12]}  e3 {[%clk 0:00:42]} 29. Qxe3 {[%clk 0:00:12]}  Re8 {[%clk 0:00:42]} 30. Re1 {[%clk 0:00:06]}  Qxb2 {[%clk 0:00:37]} 31. a3 {[%clk 0:00:06]}  Qf6 {[%clk 0:00:21]} 32. Qe5 {[%clk 0:00:06]}  Qxe5 {[%clk 0:00:21]} 33. Rxe5 {[%clk 0:00:07]}  Kf6 {[%clk 0:00:21]} 34. Nd7+ {[%clk 0:00:07]}  Kg5 {[%clk 0:00:16]} 35. Bxf5 {[%clk 0:00:07]}  Rxe5 {[%clk 0:00:16]} 36. Nxe5 {[%clk 0:00:07]}  Kxf5 {[%clk 0:00:16]} 37. Nxc6 {[%clk 0:00:08]}  Ke4 {[%clk 0:00:17]} 38. Nb4 {[%clk 0:00:05]}  Kd4 {[%clk 0:00:16]} 39. Kf2 {[%clk 0:00:04]}  Kc4 {[%clk 0:00:17]} 40. Ke3 {[%clk 0:00:03]}  Kb3 {[%clk 0:00:17]} 41. Kd3 {[%clk 0:00:03]}  Kxa3 {[%clk 0:00:18]} 42. Nc2+ {[%clk 0:00:04]}  Kb3 {[%clk 0:00:17]} 43. Kd2 {[%clk 0:00:04]}  g5 {[%clk 0:00:16]} 44. g4 {[%clk 0:00:04]}  h6 {[%clk 0:00:16]} 45. h3 {[%clk 0:00:04]}  Kb2 {[%clk 0:00:16]} 46. Kd3 {[%clk 0:00:04]}  Kb3 {[%clk 0:00:16]} 47. Kd2 {[%clk 0:00:03]}  Kb2 {[%clk 0:00:16]} 48. Kd3 {[%clk 0:00:04]}  Kb3 {[%clk 0:00:16]} 49. Kd2 {[%clk 0:00:03]} 1/2-1/2


[Site "https://www.chess.com"]

[Event "Titled Tuesday Blitz February 28 Early 2023"]
[White "Darini, Pouria"]
[Black "Winkels, Marcel"]
[WhiteFideId "12502200"]
[BlackFideId "1003887"]
[WhiteElo "2482"]
[BlackElo "1900"]
[Result "1-0"]
[Round "02"]
[TimeControl "180+2"]
[Date "2023.02.28"]
[WhiteClock "0:01:13"]
[BlackClock "0:00:11"]

1. Nf3 {[%clk 0:03:00]}  Nf6 {[%clk 0:02:58]} 2. c4 {[%clk 0:03:00]}  g6 {[%clk 0:02:53]} 3. b3 {[%clk 0:02:58]}  c5 {[%clk 0:02:48]} 4. Bb2 {[%clk 0:02:59]}  Bg7 {[%clk 0:02:47]} 5. g3 {[%clk 0:02:59]}  O-O {[%clk 0:02:47]} 6. Bg2 {[%clk 0:02:59]}  Nc6 {[%clk 0:02:47]} 7. O-O {[%clk 0:02:59]}  d5 {[%clk 0:02:46]} 8. cxd5 {[%clk 0:02:59]}  Nxd5 {[%clk 0:02:45]} 9. Bxg7 {[%clk 0:03:00]}  Kxg7 {[%clk 0:02:45]} 10. d4 {[%clk 0:03:00]}  cxd4 {[%clk 0:02:38]} 11. Nxd4 {[%clk 0:02:59]}  e5 {[%clk 0:02:23]} 12. Nxc6 {[%clk 0:02:46]}  bxc6 {[%clk 0:02:22]} 13. Qc2 {[%clk 0:02:43]}  Qb6 {[%clk 0:02:10]} 14. Na3 {[%clk 0:02:33]}  Bf5 {[%clk 0:02:07]} 15. e4 {[%clk 0:02:32]}  Nb4 {[%clk 0:02:04]} 16. Qc3 {[%clk 0:02:30]}  Be6 {[%clk 0:01:54]} 17. Qxe5+ {[%clk 0:02:30]}  Kg8 {[%clk 0:01:54]} 18. Rfd1 {[%clk 0:02:24]}  Qa6 {[%clk 0:01:47]} 19. Qb2 {[%clk 0:02:16]}  Rad8 {[%clk 0:01:45]} 20. Bf1 {[%clk 0:02:05]}  Qa5 {[%clk 0:01:29]} 21. Nc4 {[%clk 0:02:01]}  Qc5 {[%clk 0:01:19]} 22. a3 {[%clk 0:01:55]}  Na6 {[%clk 0:01:15]} 23. b4 {[%clk 0:01:54]}  Qe7 {[%clk 0:01:10]} 24. Na5 {[%clk 0:01:49]}  Rxd1 {[%clk 0:01:02]} 25. Rxd1 {[%clk 0:01:49]}  Nb8 {[%clk 0:01:00]} 26. Qd4 {[%clk 0:01:44]}  Bg4 {[%clk 0:00:46]} 27. Rd2 {[%clk 0:01:43]}  Re8 {[%clk 0:00:42]} 28. Bg2 {[%clk 0:01:31]}  h5 {[%clk 0:00:33]} 29. h3 {[%clk 0:01:28]}  Be6 {[%clk 0:00:30]} 30. f4 {[%clk 0:01:26]}  Qc7 {[%clk 0:00:20]} 31. e5 {[%clk 0:01:23]}  Bf5 {[%clk 0:00:18]} 32. Kh2 {[%clk 0:01:23]}  Qc8 {[%clk 0:00:16]} 33. Qd6 {[%clk 0:01:20]}  h4 {[%clk 0:00:13]} 34. g4 {[%clk 0:01:20]}  Be6 {[%clk 0:00:14]} 35. Qd4 {[%clk 0:01:15]}  Nd7 {[%clk 0:00:12]} 36. Nxc6 {[%clk 0:01:14]}  Rf8 {[%clk 0:00:11]} 37. Ne7+ {[%clk 0:01:13]} 1-0


[Site "https://www.chess.com"]

[Event "Titled Tuesday Blitz February 28 Early 2023"]
[White "Levine, David"]
[Black "Csonka, Balazs"]
[WhiteFideId "2011611"]
[BlackFideId "742910"]
[WhiteElo "2119"]
[BlackElo "2404"]
[Result "0-1"]
[Round "02"]
[TimeControl "180+2"]
[Date "2023.02.28"]
[WhiteClock "0:00:32"]
[BlackClock "0:00:43"]

1. d4 {[%clk 0:02:59]}  Nf6 {[%clk 0:02:58]} 2. c4 {[%clk 0:02:59]}  g6 {[%clk 0:02:56]} 3. g3 {[%clk 0:02:59]}  Bg7 {[%clk 0:02:51]} 4. Bg2 {[%clk 0:02:59]}  d5 {[%clk 0:02:50]} 5. cxd5 {[%clk 0:02:57]}  Nxd5 {[%clk 0:02:50]} 6. Nf3 {[%clk 0:02:57]}  Nb6 {[%clk 0:02:49]} 7. O-O {[%clk 0:02:48]}  Nc6 {[%clk 0:02:49]} 8. e3 {[%clk 0:02:48]}  O-O {[%clk 0:02:49]} 9. Nc3 {[%clk 0:02:47]}  Re8 {[%clk 0:02:49]} 10. h3 {[%clk 0:02:35]}  a5 {[%clk 0:02:44]} 11. Bd2 {[%clk 0:02:24]}  e5 {[%clk 0:02:37]} 12. dxe5 {[%clk 0:02:17]}  Nxe5 {[%clk 0:02:38]} 13. Nxe5 {[%clk 0:02:16]}  Bxe5 {[%clk 0:02:39]} 14. Rc1 {[%clk 0:02:09]}  Nc4 {[%clk 0:01:46]} 15. Rc2 {[%clk 0:02:04]}  c6 {[%clk 0:01:44]} 16. Bc1 {[%clk 0:01:58]}  Qe7 {[%clk 0:01:39]} 17. Qe2 {[%clk 0:01:54]}  Be6 {[%clk 0:01:38]} 18. b3 {[%clk 0:01:50]}  Na3 {[%clk 0:01:35]} 19. Bxa3 {[%clk 0:01:47]}  Qxa3 {[%clk 0:01:36]} 20. Rd1 {[%clk 0:01:34]}  Rad8 {[%clk 0:01:27]} 21. Nb1 {[%clk 0:01:14]}  Qb4 {[%clk 0:01:20]} 22. Rcd2 {[%clk 0:01:12]}  Rxd2 {[%clk 0:01:09]} 23. Qxd2 {[%clk 0:01:11]}  Qxd2 {[%clk 0:01:01]} 24. Rxd2 {[%clk 0:01:09]}  a4 {[%clk 0:01:01]} 25. b4 {[%clk 0:01:00]}  a3 {[%clk 0:00:50]} 26. Bf1 {[%clk 0:00:53]}  Bb2 {[%clk 0:00:45]} 27. Rd3 {[%clk 0:00:32]}  Ra8 {[%clk 0:00:43]} 0-1


[Site "https://www.chess.com"]

[Event "Titled Tuesday Blitz February 28 Early 2023"]
[White "Bruzon Batista, Lazaro"]
[Black "Fawzy, Adham"]
[WhiteFideId "3503739"]
[BlackFideId "10613129"]
[WhiteElo "2709"]
[BlackElo "2543"]
[Result "1-0"]
[Round "02"]
[TimeControl "180+2"]
[Date "2023.02.28"]
[WhiteClock "0:00:17"]
[BlackClock "0:00:01"]

1. d4 {[%clk 0:03:00]}  Nf6 {[%clk 0:02:59]} 2. c4 {[%clk 0:03:00]}  g6 {[%clk 0:02:59]} 3. f3 {[%clk 0:02:56]}  c5 {[%clk 0:02:56]} 4. d5 {[%clk 0:02:55]}  d6 {[%clk 0:02:38]} 5. e4 {[%clk 0:02:54]}  e6 {[%clk 0:02:39]} 6. Nc3 {[%clk 0:02:54]}  Bg7 {[%clk 0:02:34]} 7. Nge2 {[%clk 0:02:47]}  O-O {[%clk 0:02:04]} 8. Ng3 {[%clk 0:02:44]}  exd5 {[%clk 0:01:49]} 9. cxd5 {[%clk 0:02:43]}  h5 {[%clk 0:01:49]} 10. Bg5 {[%clk 0:02:37]}  a6 {[%clk 0:01:14]} 11. a4 {[%clk 0:02:35]}  Qc7 {[%clk 0:01:04]} 12. Qd2 {[%clk 0:02:28]}  Nbd7 {[%clk 0:00:59]} 13. Be2 {[%clk 0:02:28]}  Rb8 {[%clk 0:00:46]} 14. O-O {[%clk 0:02:25]}  c4 {[%clk 0:00:47]} 15. Be3 {[%clk 0:01:19]}  h4 {[%clk 0:00:45]} 16. Nh1 {[%clk 0:01:18]}  Nc5 {[%clk 0:00:46]} 17. Bxc4 {[%clk 0:01:03]}  Ncxe4 {[%clk 0:00:46]} 18. fxe4 {[%clk 0:01:01]}  Qxc4 {[%clk 0:00:45]} 19. Nf2 {[%clk 0:01:00]}  h3 {[%clk 0:00:31]} 20. gxh3 {[%clk 0:00:59]}  b5 {[%clk 0:00:31]} 21. axb5 {[%clk 0:00:59]}  axb5 {[%clk 0:00:31]} 22. Rac1 {[%clk 0:00:50]}  Ba6 {[%clk 0:00:19]} 23. Rfe1 {[%clk 0:00:43]}  b4 {[%clk 0:00:07]} 24. Na4 {[%clk 0:00:32]}  Qb5 {[%clk 0:00:07]} 25. b3 {[%clk 0:00:31]}  Rbc8 {[%clk 0:00:07]} 26. Bd4 {[%clk 0:00:31]}  Rfe8 {[%clk 0:00:06]} 27. Rxc8 {[%clk 0:00:30]}  Rxc8 {[%clk 0:00:06]} 28. Qb2 {[%clk 0:00:29]}  Ne8 {[%clk 0:00:05]} 29. Bxg7 {[%clk 0:00:29]}  Nxg7 {[%clk 0:00:06]} 30. Ng4 {[%clk 0:00:30]}  Nh5 {[%clk 0:00:05]} 31. Nh6+ {[%clk 0:00:29]}  Kf8 {[%clk 0:00:04]} 32. Qf2 {[%clk 0:00:28]}  Rc7 {[%clk 0:00:04]} 33. Qd4 {[%clk 0:00:26]}  f6 {[%clk 0:00:02]} 34. Ng4 {[%clk 0:00:25]}  Qd3 {[%clk 0:00:02]} 35. Qxd3 {[%clk 0:00:20]}  Bxd3 {[%clk 0:00:02]} 36. Nf2 {[%clk 0:00:20]}  Bc2 {[%clk 0:00:02]} 37. Rc1 {[%clk 0:00:19]}  Nf4 {[%clk 0:00:02]} 38. Kf1 {[%clk 0:00:17]}  Rc8 {[%clk 0:00:02]} 39. Ke1 {[%clk 0:00:17]}  Ke7 {[%clk 0:00:01]} 40. Kd2 {[%clk 0:00:17]} 1-0


[Site "https://www.chess.com"]

[Event "Titled Tuesday Blitz February 28 Early 2023"]
[White "Movahed, Sina"]
[Black "Fiedorek, Michal"]
[WhiteFideId "42520835"]
[BlackFideId "1199528"]
[WhiteElo "2225"]
[BlackElo "2135"]
[Result "1-0"]
[Round "02"]
[TimeControl "180+2"]
[Date "2023.02.28"]
[WhiteClock "0:02:19"]
[BlackClock "0:02:45"]

1. e4 {[%clk 0:03:00]}  c5 {[%clk 0:02:58]} 2. Nf3 {[%clk 0:03:00]}  d6 {[%clk 0:02:58]} 3. d4 {[%clk 0:02:59]}  cxd4 {[%clk 0:02:59]} 4. Nxd4 {[%clk 0:02:59]}  Nf6 {[%clk 0:03:00]} 5. Nc3 {[%clk 0:03:00]}  Nc6 {[%clk 0:03:00]} 6. Bg5 {[%clk 0:02:59]}  e6 {[%clk 0:03:01]} 7. Qd2 {[%clk 0:02:59]}  a6 {[%clk 0:03:01]} 8. O-O-O {[%clk 0:02:59]}  Bd7 {[%clk 0:03:02]} 9. f4 {[%clk 0:02:58]}  b5 {[%clk 0:03:02]} 10. Bxf6 {[%clk 0:02:56]}  gxf6 {[%clk 0:03:03]} 11. Kb1 {[%clk 0:02:55]}  b4 {[%clk 0:03:03]} 12. Nce2 {[%clk 0:02:52]}  Qb6 {[%clk 0:03:04]} 13. f5 {[%clk 0:02:49]}  Nxd4 {[%clk 0:03:02]} 14. Nxd4 {[%clk 0:02:47]}  e5 {[%clk 0:03:02]} 15. Nf3 {[%clk 0:02:47]}  Bc6 {[%clk 0:03:01]} 16. Bd3 {[%clk 0:02:43]}  a5 {[%clk 0:03:01]} 17. g4 {[%clk 0:02:37]}  a4 {[%clk 0:02:58]} 18. g5 {[%clk 0:02:37]}  a3 {[%clk 0:02:50]} 19. b3 {[%clk 0:02:35]}  O-O-O {[%clk 0:02:46]} 20. gxf6 {[%clk 0:02:23]}  d5 {[%clk 0:02:45]} 21. Nxe5 {[%clk 0:02:21]}  dxe4 {[%clk 0:02:45]} 22. Ba6+ {[%clk 0:02:19]} 1-0


[Site "https://www.chess.com"]

[Event "Titled Tuesday Blitz February 28 Early 2023"]
[White "TimGrutter03"]
[Black "Fernandez Guillen, Ernesto J."]
[BlackFideId "3512428"]
[WhiteElo "2435"]
[BlackElo "2423"]
[Result "0-1"]
[Round "02"]
[TimeControl "180+2"]
[Date "2023.02.28"]
[WhiteClock "0:00:15"]
[BlackClock "0:00:44"]

1. e4 {[%clk 0:03:00]}  e5 {[%clk 0:02:59]} 2. Nf3 {[%clk 0:03:00]}  Nc6 {[%clk 0:02:59]} 3. g3 {[%clk 0:03:00]}  g6 {[%clk 0:02:59]} 4. Bg2 {[%clk 0:03:00]}  Bg7 {[%clk 0:02:59]} 5. O-O {[%clk 0:03:00]}  Nge7 {[%clk 0:03:00]} 6. c3 {[%clk 0:02:52]}  O-O {[%clk 0:03:00]} 7. d4 {[%clk 0:02:53]}  exd4 {[%clk 0:02:58]} 8. cxd4 {[%clk 0:02:53]}  d5 {[%clk 0:02:59]} 9. e5 {[%clk 0:02:47]}  f6 {[%clk 0:02:54]} 10. exf6 {[%clk 0:02:45]}  Bxf6 {[%clk 0:02:55]} 11. Bh6 {[%clk 0:02:26]}  Bg7 {[%clk 0:02:48]} 12. Bxg7 {[%clk 0:02:26]}  Kxg7 {[%clk 0:02:49]} 13. Ne5 {[%clk 0:02:25]}  Nxe5 {[%clk 0:02:46]} 14. dxe5 {[%clk 0:02:26]}  c6 {[%clk 0:02:46]} 15. Kh1 {[%clk 0:02:18]}  Be6 {[%clk 0:02:46]} 16. f4 {[%clk 0:02:18]}  Qb6 {[%clk 0:02:45]} 17. Qd2 {[%clk 0:01:56]}  Nf5 {[%clk 0:02:45]} 18. Qf2 {[%clk 0:01:48]}  Ne3 {[%clk 0:02:42]} 19. Re1 {[%clk 0:01:48]}  Nxg2 {[%clk 0:02:40]} 20. Kxg2 {[%clk 0:01:41]}  d4 {[%clk 0:02:37]} 21. b3 {[%clk 0:01:34]}  g5 {[%clk 0:02:30]} 22. Nd2 {[%clk 0:01:31]}  gxf4 {[%clk 0:02:30]} 23. gxf4 {[%clk 0:01:32]}  Kh8 {[%clk 0:02:30]} 24. Nc4 {[%clk 0:01:25]}  Rg8+ {[%clk 0:02:28]} 25. Kf1 {[%clk 0:01:20]}  Qc5 {[%clk 0:02:23]} 26. Qf3 {[%clk 0:01:13]}  d3 {[%clk 0:02:05]} 27. Qe3 {[%clk 0:01:02]}  Qd5 {[%clk 0:01:04]} 28. Qe4 {[%clk 0:00:43]}  d2 {[%clk 0:01:00]} 29. Nxd2 {[%clk 0:00:35]}  Bh3+ {[%clk 0:00:49]} 30. Kf2 {[%clk 0:00:19]}  Rg2+ {[%clk 0:00:46]} 31. Kf3 {[%clk 0:00:19]}  Qxd2 {[%clk 0:00:46]} 32. Qe3 {[%clk 0:00:15]}  Bg4+ {[%clk 0:00:44]} 0-1


[Site "https://www.chess.com"]

[Event "Titled Tuesday Blitz February 28 Early 2023"]
[White "Yayloyan, Konstantin"]
[Black "Rostomyan, Mikayel"]
[WhiteFideId "13307088"]
[BlackFideId "13313754"]
[WhiteElo "2190"]
[BlackElo "2009"]
[Result "0-1"]
[Round "02"]
[TimeControl "180+2"]
[Date "2023.02.28"]
[WhiteClock "0:00:01"]
[BlackClock "0:00:05"]

1. e4 {[%clk 0:03:00]}  c5 {[%clk 0:02:59]} 2. Nf3 {[%clk 0:02:59]}  Nc6 {[%clk 0:02:59]} 3. Nc3 {[%clk 0:02:59]}  g6 {[%clk 0:02:58]} 4. Bb5 {[%clk 0:02:57]}  Bg7 {[%clk 0:02:58]} 5. O-O {[%clk 0:02:55]}  Nd4 {[%clk 0:02:49]} 6. Bc4 {[%clk 0:02:50]}  e6 {[%clk 0:02:47]} 7. Nxd4 {[%clk 0:02:47]}  cxd4 {[%clk 0:02:47]} 8. Ne2 {[%clk 0:02:47]}  Ne7 {[%clk 0:02:41]} 9. c3 {[%clk 0:02:42]}  Nc6 {[%clk 0:02:38]} 10. d3 {[%clk 0:02:25]}  O-O {[%clk 0:02:35]} 11. Bb3 {[%clk 0:02:23]}  d5 {[%clk 0:02:28]} 12. exd5 {[%clk 0:02:21]}  exd5 {[%clk 0:02:29]} 13. cxd4 {[%clk 0:02:12]}  Nxd4 {[%clk 0:02:23]} 14. Nxd4 {[%clk 0:02:13]}  Bxd4 {[%clk 0:02:23]} 15. Qf3 {[%clk 0:02:07]}  Be6 {[%clk 0:02:18]} 16. Bh6 {[%clk 0:02:02]}  Bg7 {[%clk 0:02:16]} 17. Bxg7 {[%clk 0:02:02]}  Kxg7 {[%clk 0:02:17]} 18. Rac1 {[%clk 0:02:01]}  a5 {[%clk 0:01:58]} 19. Qf4 {[%clk 0:01:51]}  Qf6 {[%clk 0:01:44]} 20. Qxf6+ {[%clk 0:01:48]}  Kxf6 {[%clk 0:01:44]} 21. Rc5 {[%clk 0:01:42]}  Rfd8 {[%clk 0:01:34]} 22. a4 {[%clk 0:01:36]}  Ke5 {[%clk 0:01:19]} 23. Rb5 {[%clk 0:01:07]}  Rd7 {[%clk 0:01:15]} 24. Rc1 {[%clk 0:00:47]}  Kd4 {[%clk 0:01:13]} 25. Rc3 {[%clk 0:00:47]}  Ra6 {[%clk 0:00:58]} 26. Kf1 {[%clk 0:00:36]}  Rc6 {[%clk 0:00:57]} 27. Rxc6 {[%clk 0:00:28]}  bxc6 {[%clk 0:00:58]} 28. Rxa5 {[%clk 0:00:29]}  Kxd3 {[%clk 0:00:58]} 29. Bd1 {[%clk 0:00:28]}  Kd4 {[%clk 0:00:54]} 30. b4 {[%clk 0:00:16]}  Kc4 {[%clk 0:00:36]} 31. b5 {[%clk 0:00:13]}  Kb4 {[%clk 0:00:29]} 32. Ra8 {[%clk 0:00:06]}  cxb5 {[%clk 0:00:25]} 33. axb5 {[%clk 0:00:07]}  Rb7 {[%clk 0:00:20]} 34. Be2 {[%clk 0:00:06]}  d4 {[%clk 0:00:15]} 35. Rd8 {[%clk 0:00:06]}  Bd7 {[%clk 0:00:14]} 36. f4 {[%clk 0:00:05]}  Kc3 {[%clk 0:00:14]} 37. Kf2 {[%clk 0:00:02]}  d3 {[%clk 0:00:13]} 38. Bf1 {[%clk 0:00:02]}  Bxb5 {[%clk 0:00:12]} 39. g3 {[%clk 0:00:02]}  Bc4 {[%clk 0:00:12]} 40. Ke3 {[%clk 0:00:02]}  Re7+ {[%clk 0:00:12]} 41. Kf2 {[%clk 0:00:02]}  Re4 {[%clk 0:00:09]} 42. Rc8 {[%clk 0:00:02]}  d2 {[%clk 0:00:07]} 43. Rd8 {[%clk 0:00:01]}  Bxf1 {[%clk 0:00:05]} 0-1


[Site "https://www.chess.com"]

[Event "Titled Tuesday Blitz February 28 Early 2023"]
[White "Prudnykova, Olga"]
[Black "Arabidze, Meri"]
[WhiteFideId "14121093"]
[BlackFideId "13604040"]
[WhiteElo "2174"]
[BlackElo "2405"]
[Result "0-1"]
[Round "02"]
[TimeControl "180+2"]
[Date "2023.02.28"]
[WhiteClock "0:00:13"]
[BlackClock "0:00:18"]

1. e4 {[%clk 0:02:59]}  c5 {[%clk 0:02:58]} 2. Nf3 {[%clk 0:02:59]}  e6 {[%clk 0:02:58]} 3. Nc3 {[%clk 0:02:58]}  Nc6 {[%clk 0:02:58]} 4. d4 {[%clk 0:02:58]}  cxd4 {[%clk 0:02:58]} 5. Nxd4 {[%clk 0:02:59]}  a6 {[%clk 0:02:59]} 6. Nxc6 {[%clk 0:02:59]}  bxc6 {[%clk 0:02:59]} 7. Bd3 {[%clk 0:02:59]}  d5 {[%clk 0:02:59]} 8. O-O {[%clk 0:03:00]}  Nf6 {[%clk 0:03:00]} 9. Qe2 {[%clk 0:02:58]}  Be7 {[%clk 0:03:00]} 10. Rd1 {[%clk 0:02:51]}  O-O {[%clk 0:03:00]} 11. Kh1 {[%clk 0:02:49]}  Bb7 {[%clk 0:03:00]} 12. f4 {[%clk 0:02:49]}  Qc7 {[%clk 0:03:00]} 13. e5 {[%clk 0:02:47]}  Nd7 {[%clk 0:03:00]} 14. Qh5 {[%clk 0:02:33]}  g6 {[%clk 0:02:59]} 15. Qh6 {[%clk 0:02:33]}  Rfd8 {[%clk 0:02:52]} 16. Be3 {[%clk 0:02:28]}  Bf8 {[%clk 0:02:51]} 17. Qh4 {[%clk 0:02:27]}  c5 {[%clk 0:02:49]} 18. Bf2 {[%clk 0:02:24]}  Rab8 {[%clk 0:02:39]} 19. Rab1 {[%clk 0:02:22]}  Bg7 {[%clk 0:02:18]} 20. Bf1 {[%clk 0:02:20]}  d4 {[%clk 0:02:17]} 21. Ne2 {[%clk 0:02:19]}  Nb6 {[%clk 0:02:15]} 22. b3 {[%clk 0:02:15]}  Be4 {[%clk 0:02:10]} 23. Rbc1 {[%clk 0:02:14]}  Qb7 {[%clk 0:02:06]} 24. Ng3 {[%clk 0:02:13]}  Bc6 {[%clk 0:02:06]} 25. c4 {[%clk 0:01:59]}  a5 {[%clk 0:02:03]} 26. Qg4 {[%clk 0:01:48]}  a4 {[%clk 0:02:01]} 27. h4 {[%clk 0:01:46]}  axb3 {[%clk 0:02:00]} 28. axb3 {[%clk 0:01:45]}  Nd7 {[%clk 0:02:01]} 29. h5 {[%clk 0:01:42]}  Qxb3 {[%clk 0:01:55]} 30. hxg6 {[%clk 0:01:41]}  hxg6 {[%clk 0:01:56]} 31. Bd3 {[%clk 0:01:36]}  Nf8 {[%clk 0:01:37]} 32. Kh2 {[%clk 0:01:31]}  Qa2 {[%clk 0:01:34]} 33. Rf1 {[%clk 0:01:27]}  Rb2 {[%clk 0:01:33]} 34. Kg1 {[%clk 0:01:27]}  Rdb8 {[%clk 0:01:28]} 35. f5 {[%clk 0:01:11]}  exf5 {[%clk 0:01:25]} 36. Bxf5 {[%clk 0:01:11]}  Qa3 {[%clk 0:01:18]} 37. e6 {[%clk 0:00:58]}  Rxf2 {[%clk 0:00:58]} 38. exf7+ {[%clk 0:00:57]}  Kh8 {[%clk 0:00:54]} 39. Qh4+ {[%clk 0:00:20]}  Nh7 {[%clk 0:00:54]} 40. Rxf2 {[%clk 0:00:20]}  Qxc1+ {[%clk 0:00:54]} 41. Kh2 {[%clk 0:00:20]}  Qh6 {[%clk 0:00:44]} 42. Qxh6 {[%clk 0:00:17]}  Bxh6 {[%clk 0:00:45]} 43. Bxg6 {[%clk 0:00:18]}  Nf8 {[%clk 0:00:44]} 44. Bd3 {[%clk 0:00:15]}  Be3 {[%clk 0:00:43]} 45. Rf1 {[%clk 0:00:14]}  Rb2 {[%clk 0:00:43]} 46. Be4 {[%clk 0:00:14]}  Bxe4 {[%clk 0:00:35]} 47. Nxe4 {[%clk 0:00:15]}  d3 {[%clk 0:00:35]} 48. Rf3 {[%clk 0:00:14]}  d2 {[%clk 0:00:26]} 49. Nxd2 {[%clk 0:00:13]}  Bxd2 {[%clk 0:00:24]} 50. Rd3 {[%clk 0:00:14]}  Bf4+ {[%clk 0:00:23]} 51. Kh3 {[%clk 0:00:14]}  Kg7 {[%clk 0:00:21]} 52. Kg4 {[%clk 0:00:14]}  Be5 {[%clk 0:00:20]} 53. Rd5 {[%clk 0:00:14]}  Bd4 {[%clk 0:00:18]} 54. g3 {[%clk 0:00:13]}  Kxf7 {[%clk 0:00:18]} 0-1


[Site "https://www.chess.com"]